Cogmind - Beta 16.1 @@@ ROGUE MODE // 2026.03.14 @ 16:20:25 Player: laeb2 Result: Escaped! Performance ------------- Evolutions (9) 4500 Regions Visited (18) 3600 Robots Destroyed (337) 1685 Value Destroyed (19753) 19753 Prototype IDs (37) 740 Alien Tech Used (0) 0 Bonus (15534) 15534 TOTAL SCORE: 45812 Bonus ------- High Alert Combat Kills 6784 Follower Combat Kills 2059 Entered Garrisons 1000 Used RIF Installer 2500 Aligned with FarCom 300 Win 3000 Friendly Fire -109 Cogmind --------- Core Integrity 1162/1600 Matter 102/300 Energy 578/590 System Corruption 2% Temperature Cool (8) Movement Walking (180) Ox1 Location To Epsilon Eridani Parts ------- > --- POWER (2) -------- Particle Reactor Reinforced Quantum Reactor > --- PROPULSION (6) --- Biometal Heavy Treads Biometal Leg Biometal Leg Biometal Leg Biometal Leg > --- UTILITY (13) ----- Advanced Heat Sink Advanced Cooling System Huge Storage Unit Advanced Targeting Computer Advanced Targeting Computer Advanced Launcher Guidance Computer Advanced Target Analyzer Advanced Target Analyzer Advanced Target Analyzer Core Analyzer Core Analyzer Advanced Weapon Cycler Improved Medium Armor Plating > --- WEAPON (4) ------- KE Penetrator Railgun Micro-nuke Launcher Micro-nuke Launcher > --- INVENTORY (25) --- Particle Reactor Armored Heavy Treads Improved Matter Compressor (300) Advanced Targeting Computer Advanced Force Booster Heavy Armor Plating Graphene Brace Relay Coupler [Grunt] (29) Relay Coupler [Brawler] (28) Relay Coupler [Demolisher] (31) Relay Coupler [Specialist] (28) Compact HERF Cannon Railgun XL Autogun Array Advanced Remote Datajack Improved Plasma Cutter Peak State ------------ > --- POWER ------------ Quantum Reactor Quantum Reactor > --- PROPULSION ------- Improved Heavy Treads Improved Heavy Treads Biometal Heavy Treads > --- UTILITY ---------- Advanced Cooling System Advanced Cooling System Huge Storage Unit Advanced Targeting Computer Advanced Targeting Computer Core Analyzer Core Analyzer Improved Force Booster Improved Force Booster Advanced Force Booster Advanced Force Booster Advanced Phase Shifter Layered Light Armor Plating > --- WEAPON ----------- Enhanced Hardcell Cannon Enhanced Hardcell Cannon Enhanced Hardcell Cannon Enhanced Force Lance > --- INVENTORY -------- Quantum Reactor Improved Heavy Treads Biometal Heavy Treads Biometal Heavy Treads Advanced Cooling System Improved Matter Compressor Relay Coupler [NC] Relay Coupler [Sentry] Relay Coupler [Behemoth] High-powered Tractor Beam KE Penetrator Railgun XL Autogun Array Heavy Shock Bomb Launcher Heavy Rocket Launcher Improved Remote Datajack Improved Plasma Cutter Enhanced Force Lance Enhanced Force Lance [Rating: 188] Favorites ----------- Power F-cell Engine Engine F-cell Engine Power Core Nuclear Core Reactor Quantum Reactor Propulsion Light Treads Treads Light Treads Leg Biometal Leg Wheel Armored Huge Wheel Utility Core Analyzer Device Advanced Cooling System Storage Huge Storage Unit Processor Core Analyzer Hackware Relay Coupler [Grunt] Protection Improved Medium Armor Plating Weapon KE Penetrator Energy Gun Advanced Beam Rifle Energy Cannon Compact HERF Cannon Ballistic Gun KE Penetrator Ballistic Cannon Enhanced Hardcell Cannon Launcher Grenade Launcher Special Weapon Improved Remote Datajack Impact Weapon Heavy Flail Piercing Weapon Enhanced Force Lance Build | -11 -10 -10 -10 -9 -8 -7 -7 -6 -6 -5 -4 -4 -3 -3 -2 -1 -1 -1 ------- Run | Yrd Mat Min Exi Min Mat Fac Gar Fac Gar Fac Fac Gar Res Gar Res Acc Gar Acc Slots Evolved 18 | . . . . . 4 2 . 2 . 2 2 . 2 . 2 2 . . Power 1 | . . . . . . . . . . . . . 1 . . . . . Propulsion 4 | . . . . . 2 1 . 1 . . . . . . . . . . Utility 11 | . . . . . . 1 . 1 . 2 2 . 1 . 2 2 . . Weapon 2 | . . . . . 2 . . . . . . . . . . . . . Parts Attached 223 | 7 3 1 . . 22 11 29 13 10 6 10 40 . 16 5 4 40 6 Power 18 | 1 . . . . 2 1 3 2 . . . 3 . 1 . 1 4 . Engine 8 | 1 . . . . 1 1 2 1 . . . 2 . . . . . . Core 2 | . . . . . 1 . 1 . . . . . . . . . . . Reactor 8 | . . . . . . . . 1 . . . 1 . 1 . 1 4 . Propulsion 59 | 2 . . . . 4 6 10 5 5 . 5 11 . 1 1 . 9 . Treads 40 | 2 . . . . 4 6 10 2 3 . . 8 . 1 1 . 3 . Leg 11 | . . . . . . . . . . . 2 3 . . . . 6 . Wheel 8 | . . . . . . . . 3 2 . 3 . . . . . . . Hover . | . . . . . . . . . . . . . . . . . . . Flight . | . . . . . . . . . . . . . . . . . . . Utility 73 | 2 1 . . . 5 1 6 1 1 4 5 10 . 11 4 2 16 4 Device 30 | 1 . . . . 3 . 4 1 1 1 . 2 . 6 2 2 7 . Storage 4 | 1 1 . . . 1 . . . . . 1 . . . . . . . Processor 12 | . . . . . . . . . . 1 3 1 . . 2 . 2 3 Hackware 11 | . . . . . . 1 . . . 1 . 2 . 4 . . 3 . Protection 16 | . . . . . 1 . 2 . . 1 1 5 . 1 . . 4 1 Artifact . | . . . . . . . . . . . . . . . . . . . Weapon 73 | 2 2 1 . . 11 3 10 5 4 2 . 16 . 3 . 1 11 2 Energy Gun 18 | 2 . . . . 7 . 1 1 . . . 4 . . . . 3 . Energy Cannon 4 | . . . . . . . . 1 . . . 3 . . . . . . Ballistic Gun 27 | . 2 . . . 1 3 7 1 3 . . 3 . . . . 7 . Ballistic Cannon 7 | . . . . . . . 1 2 . . . 1 . 2 . 1 . . Launcher 10 | . . 1 . . 3 . 1 . 1 1 . . . 1 . . 1 1 Special Weapon 2 | . . . . . . . . . . . . 1 . . . . . 1 Impact Weapon 1 | . . . . . . . . . . 1 . . . . . . . . Slashing Weapon . | . . . . . . . . . . . . . . . . . . . Piercing Weapon 4 | . . . . . . . . . . . . 4 . . . . . . Special Melee Weapon . | . . . . . . . . . . . . . . . . . . . Unidentified Prototypes 14 | . . . . . 4 3 1 4 . . 1 . . . . . 1 . Parts Lost 108 | . . . . . 7 3 22 2 6 1 4 27 . 4 3 . 25 4 Power 9 | . . . . . 1 . 3 . . . . 2 . . . . 3 . Propulsion 41 | . . . . . 2 2 10 2 5 1 3 9 . 1 1 . 5 . Utility 23 | . . . . . 1 . 2 . . . 1 4 . 2 2 . 9 2 Weapon 35 | . . . . . 3 1 7 . 1 . . 12 . 1 . . 8 2 Highest Loss Streak 12 | . . . . . 4 3 9 1 3 1 3 12 . 1 3 . 11 2 To Critical Strikes 1 | . . . . . . . . . . . 1 . . . . . . . Average Backups 18 | 2 8 14 12 11 10 20 19 21 21 20 21 19 17 17 18 19 19 19 Power 1 | 1 2 2 1 1 . 1 1 2 2 2 2 1 1 . 1 1 . 1 Propulsion 1 | . . 1 1 1 1 3 1 . 1 1 . . 5 4 3 3 3 1 Utility 7 | . 3 4 4 5 5 8 10 9 8 7 7 8 6 5 6 6 8 10 Weapon 6 | 1 2 6 5 3 2 6 6 7 9 8 9 5 3 5 6 7 6 4 Tool/Special . | . . . . . . . . . . . . . . . . . . . Unused Backups 77 | . 1 1 5 2 2 5 4 3 3 3 1 24 . 4 . 1 6 12 Power 9 | . . . 1 . . . . 2 1 . . 3 . . . 1 . 1 Propulsion 4 | . . . . . . . . . . . . . . . . . 3 1 Utility 44 | . 1 1 1 . 2 3 3 1 2 3 1 15 . 2 . . 2 7 Weapon 19 | . . . 3 2 . 2 1 . . . . 6 . 2 . . 1 2 Tool/Special 1 | . . . . . . . . . . . . . . . . . . 1 Average Slot Usage (%) 91 | . 100 100 100 100 87 98 96 95 95 87 83 89 76 82 81 82 86 93 Engine 4 | . 14 14 14 14 3 . 6 6 6 5 5 4 . . . . . . Reactor 2 | . . . . . . . . . . . . . 4 8 8 8 7 8 Treads 20 | . 28 28 28 28 34 37 37 27 26 10 3 14 14 14 12 12 5 4 Leg 3 | . . . . . . . . . . . 5 6 . . . . 11 16 Wheel 2 | . . . . . . . . 9 8 11 9 2 . . . . . . Device 15 | . 14 14 14 14 7 13 8 19 20 17 15 13 14 23 21 22 15 15 Storage 6 | . 14 14 14 14 9 7 6 6 6 5 5 5 4 4 4 4 4 4 Processor 6 | . . . . . . . . . . 3 11 12 9 9 11 16 18 24 Protection 3 | . . . . . 1 . 4 . . 5 5 7 9 1 4 4 5 6 Energy Gun 4 | . 2 . . . 22 27 1 7 2 . 5 7 . . . . 1 . Ballistic Gun 12 | . 25 14 14 16 3 1 27 14 17 20 15 2 . . . . 10 14 Ballistic Cannon 1 | . . . . . . . . 1 2 . . . . 2 8 9 1 . Launcher 1 | . . 14 14 11 1 . . . 2 1 . . . . . . . . Piercing Weapon 2 | . . . . . . . . . . . . 4 19 13 8 6 . . Peak Build Rating 188 | 7 8 9 12 13 45 49 67 68 73 88 101 140 140 167 173 188 188 178 Average Rating 90 | 5 7 8 10 12 26 40 50 63 68 85 91 100 140 157 168 177 159 172 On Entrance 77 | . 7 8 9 12 13 30 48 48 68 72 85 101 140 140 163 173 188 169 Avg Prop Armor Cover (%) 10 | . . . . . . . . 20 17 8 6 10 . . . . 5 5 Naked Turns . | . . . . . . . . . . . . . . . . . . . Heaviest Build 214 | 13 30 31 31 31 98 102 118 118 119 130 125 150 150 191 196 214 214 179 Greatest Support 225 | 40 40 40 40 40 80 124 128 130 130 56 56 220 220 220 225 225 225 112 Greatest Overweight (x) 10 | . . . . . 1 . 1 10 4 2 4 4 . 1 . . 1 1 Average Overweight (x) . | . . . . . . . . 3 2 2 2 1 . . . . . 1 Largest Inventory Capacity 25 | 8 15 15 15 15 25 25 25 25 25 25 25 25 25 25 25 25 25 25 Average Capacity 23 | 7 14 15 15 15 16 25 23 25 25 25 25 25 25 25 25 25 25 25 Most Carried 25 | 5 15 15 15 15 19 25 25 25 25 25 25 25 25 25 25 25 25 25 Average Carried 22 | 2 8 14 14 15 13 23 22 24 24 24 24 23 25 24 24 24 23 24 Final Capacity 25 | 8 15 15 15 15 25 25 25 25 25 25 25 25 25 25 25 25 25 25 Final Carried 25 | 3 15 15 15 15 19 25 23 25 25 25 25 25 25 25 25 25 24 21 Class Distribution -------------------- 33% | Scavenger-Skirmisher 26% | Scavenger-Gunner 14% | Mutant 7% | Scavenger-Mutant 7% | Scavenger-Gladiator 3% | Gladiator Dominant Class ---------------- Mutant | -10/Materials Mutant | -10/Mines Mutant | -10/Exiles Mutant | -9/Mines Scavenger-Skirmisher | -8/Materials Scavenger-Skirmisher | -7/Factory Scavenger-Skirmisher | -7/Garrison Scavenger-Skirmisher | -6/Factory Scavenger-Skirmisher | -6/Garrison Scavenger-Skirmisher | -5/Factory Scavenger-Gunner | -4/Factory Scavenger-Gunner | -4/Garrison Scavenger-Mutant | -3/Research Scavenger-Gladiator | -3/Garrison Scavenger-Gladiator | -2/Research Scavenger-Gladiator | -1/Access Scavenger-Gunner | -1/Garrison Scavenger-Gunner | -1/Access Resources | -11 -10 -10 -10 -9 -8 -7 -7 -6 -6 -5 -4 -4 -3 -3 -2 -1 -1 -1 ----------- Run | Yrd Mat Min Exi Min Mat Fac Gar Fac Gar Fac Fac Gar Res Gar Res Acc Gar Acc Matter Collected 10829 | 270 145 95 . 65 422 289 1721 584 1404 331 675 1013 . 604 106 164 2297 644 Remotely 335 | . . . . . . . . . . . . . . . . . 335 . Salvage Created 18071 | 113 298 166 . 131 628 883 1699 1138 1203 952 431 1674 . 1453 605 610 4754 1333 Parts 780 | 7 17 17 . 12 22 42 74 42 59 52 19 71 . 51 21 16 190 68 Haulers Intercepted 11 | . 1 . . . 3 2 . 2 . . . . . . . 2 . 1 Recyclers Shooed 3 | . . . . . . . . 1 . 1 . . . . 1 . . . Parts Field Recycled . | . . . . . . . . . . . . . . . . . . . Retrieved Matter . | . . . . . . . . . . . . . . . . . . . Parts Self-Destructed . | . . . . . . . . . . . . . . . . . . . Prevented . | . . . . . . . . . . . . . . . . . . . Parts Restored . | . . . . . . . . . . . . . . . . . . . Kills | -11 -10 -10 -10 -9 -8 -7 -7 -6 -6 -5 -4 -4 -3 -3 -2 -1 -1 -1 ------- Run | Yrd Mat Min Exi Min Mat Fac Gar Fac Gar Fac Fac Gar Res Gar Res Acc Gar Acc Combat Hostiles Destroyed 271 | . 7 8 . 6 12 16 32 9 25 14 6 22 . 27 2 5 65 15 Melee 17 | . . . . . . . . . . . . 1 . 13 1 . 2 . Guns 134 | . 7 . . 2 3 11 29 6 14 6 6 8 . . . . 31 11 Cannons 20 | . . . . . . . . 2 . . . 5 . 3 1 . 8 1 AOE 89 | . . 8 . 4 9 5 3 . 11 6 . 8 . 10 . 5 17 3 Classes Destroyed 20 | 2 3 . . 2 2 2 2 1 2 . 1 . . 1 . . 1 1 Worker 11 | . . . . 1 . 2 . 3 . . 2 . . . . . . 3 Builder 15 | . . . . . 3 3 . 1 . 3 . . . . 1 2 . 2 Tunneler 3 | 2 . . . . . . . . . 1 . . . . . . . . Hauler 11 | . 1 . . . 3 2 . 2 . . . . . . . 2 . 1 Recycler 14 | 1 . 1 . . 1 1 . 3 . 1 . . . . 3 2 . 1 Mechanic 2 | . . . . . 1 . . . . . . . . . 1 . . . Operator 2 | . . . . . . . . . . . 1 . . . . 1 . . Watcher 7 | . . . . . . . . 2 . 2 . . . . 1 . . 2 Swarmer 78 | . 2 6 . 4 . 5 3 . 13 4 . 9 . 13 1 5 13 . Saboteur 3 | . . . . . . . . . 2 . . . . . . . 1 . Grunt 108 | . 5 2 . 1 12 6 15 3 3 6 1 7 . 10 . . 29 8 Brawler 7 | . . . . 1 . . 4 . . . . . . . . . 2 . Duelist 8 | . . . . . . . . . 4 1 . . . . . . 1 2 Protector 1 | . . . . . . . . . . . . . . . . . . 1 Sentry 22 | . . . . . . 4 6 2 1 . 1 1 . 2 . . 5 . Specialist 1 | . . . . . . . . . . . . . . 1 . . . . Hunter 18 | . . . . . . . 1 1 2 . 2 2 . . 1 . 9 . Programmer 19 | . . . . . . 1 1 3 . 3 2 2 . . . . 3 4 Heavy 1 | . . . . . . . . . . . . . . . . . 1 . Behemoth 6 | . . . . . . . 2 . . . . 2 . 1 . . 1 . Best Kill Streak 18 | 2 2 4 . 5 8 10 6 4 8 9 3 8 . 8 5 9 18 8 Combat Bots Only 18 | . 2 3 . 4 6 5 6 3 8 4 3 8 . 8 1 5 18 5 Max Kills in Single Turn 5 | 1 1 3 . 2 3 5 2 1 2 4 1 3 . 3 1 3 4 3 Gunslinging 1 | . . . . . . . . . 1 1 . . . . . . 1 . Exploded 4 | . . 3 . 2 2 2 2 . 2 2 . 3 . 3 . 2 4 2 Melee 1 | . . . . . . . . . . . . 1 . 1 1 . 1 . Uniques/NPCs Destroyed . | . . . . . . . . . . . . . . . . . . . Combat | -11 -10 -10 -10 -9 -8 -7 -7 -6 -6 -5 -4 -4 -3 -3 -2 -1 -1 -1 -------- Run | Yrd Mat Min Exi Min Mat Fac Gar Fac Gar Fac Fac Gar Res Gar Res Acc Gar Acc Hostile Shots Fired 1650 | . 38 10 . 14 59 157 293 37 98 50 60 222 . 93 50 15 398 56 Missed 496 | . 13 2 . 6 21 57 87 12 28 15 23 54 . 25 7 4 130 12 Hits 1154 | . 25 8 . 8 38 100 206 25 70 35 37 168 . 68 43 11 268 44 Melee 3 | . . . . . . . . . . . . . . . . . 1 2 Projectile 1151 | . 25 8 . 8 38 100 206 25 70 35 37 168 . 68 43 11 267 42 Critical Strikes 33 | . . . . . . . 9 . 1 1 2 5 . 1 1 . 11 2 Part Disruptions 2 | . . . . . . . . . . 1 . 1 . . . . . . Damage Taken 22235 | . 239 91 . 69 709 1018 3240 294 1224 726 692 3914 . 1512 965 253 6255 1034 Core 1567 | . 51 7 . . . 84 222 15 101 16 146 280 . 135 72 23 379 36 Absorbed by Shields 255 | . . . . . . . . . . . . 182 . . . . 73 . Reduced by Siege Mode 625 | . . . . . . . . . . . . . . 83 . . 490 52 Ignored by Resistances 86 | . . . . . . . . 25 48 . . . . . . . 13 . Core Remaining (%) 83 | 100 . . . 76 100 . 56 . 86 98 . 62 . 89 95 . . 72 Volleys Fired 727 | 5 24 7 . 8 31 31 118 44 94 20 21 77 . 41 7 6 153 40 Largest 4 | 2 2 1 . 2 3 4 4 4 4 4 4 4 . 1 1 3 4 4 Hottest 323 | 80 40 30 . 40 187 248 231 226 226 169 169 323 . 58 58 174 242 136 Shots Fired 1896 | 10 48 7 . 13 55 107 402 132 269 60 80 159 . 41 7 12 354 140 Gun 1624 | 10 48 2 . 10 47 103 396 121 249 54 80 93 . . . . 279 132 Cannon 144 | . . . . . . . 3 11 7 . . 47 . 20 7 9 40 . Launcher 101 | . . 5 . 3 8 4 3 . 13 6 . 7 . 11 . 3 31 7 Special 27 | . . . . . . . . . . . . 12 . 10 . . 4 1 Kinetic 1433 | . 48 2 . 10 25 20 355 82 234 50 63 74 . 20 7 9 302 132 Thermal 332 | 10 . . . . 22 83 44 50 22 4 17 62 . . . . 17 1 Explosive 64 | . . 5 . 3 8 4 3 . 13 . . 3 . 6 . 3 9 7 Electromagnetic 41 | . . . . . . . . . . 6 . 8 . 5 . . 22 . Robot Hit Streak 83 | 5 6 1 . 2 8 9 26 26 28 6 12 15 . 16 3 5 83 27 Robot Miss Streak 9 | 2 3 1 . 2 9 3 5 4 5 5 4 8 . 2 2 1 2 1 Penetration Max 1 | . . . . . . . 1 . 1 1 . 1 . . . . 1 1 Secondary Targets 34 | . 1 . . . . 2 10 . 2 2 2 2 . . . . 11 2 Max Gunslinging Chain 1 | . 1 . . . . 1 1 . 1 1 1 1 . . . . 1 1 Shots Hit Robots 1354 | 6 26 1 . 5 41 66 282 98 177 40 60 121 . 55 14 8 251 103 Core Hits 806 | 4 14 8 . 7 33 45 97 50 106 33 24 65 . 47 8 14 191 60 Critical Kills 9 | . . . . . . . . . 1 . . . . . . . 3 5 Critical Parts Destroyed 24 | . . . . . . . . 1 7 4 . . . . . . 5 7 Critical Strikes 61 | . . . . . 1 5 2 2 8 4 . 7 . 4 1 2 13 12 Burn 9 | . . . . . 1 5 1 . . . . 1 . . . . 1 . Destroy 31 | . . . . . . . . 1 8 2 . . . . . . 8 12 Blast 7 | . . . . . . . 1 1 . . . . . 1 . 1 3 . Smash 2 | . . . . . . . . . . 2 . . . . . . . . Impale 12 | . . . . . . . . . . . . 6 . 3 1 1 1 . Melee Attacks 166 | . . . . . . . . . . 11 . 49 2 72 18 5 9 . Impact 16 | . . . . . . . . . . 11 . 5 . . . . . . Slashing . | . . . . . . . . . . . . . . . . . . . Piercing 150 | . . . . . . . . . . . . 44 2 72 18 5 9 . Sneak Attacks 13 | . . . . . . . . . . 1 . . . 4 5 3 . . Combat Hostiles 5 | . . . . . . . . . . 1 . . . 4 . . . . Follow-up Attacks 21 | . . . . . . . . . . . . 8 . 11 2 . . . Damage Inflicted 48610 | 66 343 364 . 310 1909 1827 5364 2551 4773 1968 1280 5358 . 4740 1118 1157 11421 4061 Guns 24869 | 66 343 15 . 77 638 1248 5040 2330 3474 910 1280 1206 . . . . 5544 2698 Cannons 3821 | . . . . . . . 86 221 103 . . 1023 . 654 177 185 1372 . Explosions 13064 | . . 349 . 233 1271 579 238 . 1196 665 . 821 . 1437 . 568 4364 1343 Melee 6821 | . . . . . . . . . . 393 . 2293 . 2649 941 404 141 . Ramming 15 | . . . . . . . . . . . . 15 . . . . . . Kinetic 23314 | . 343 15 . 77 290 229 4351 1387 3207 814 906 1320 . 654 177 185 6661 2698 Thermal 6197 | 66 . 26 . . 348 1019 775 1164 370 108 374 909 . 40 . . 978 20 Explosive 9110 | . . 323 . 233 1271 579 238 . 1196 . . 662 . 1017 . 568 1680 1343 Electromagnetic 3153 | . . . . . . . . . . 653 . 159 . 380 . . 1961 . Impact 393 | . . . . . . . . . . 393 . . . . . . . . Slashing . | . . . . . . . . . . . . . . . . . . . Piercing 6428 | . . . . . . . . . . . . 2293 . 2649 941 404 141 . Highest Corruption 5 | . . . . . . . 1 2 3 5 . 3 . . . . . 2 Average Corruption 2 | . . . . . . . 1 1 3 3 . 2 . . . . . 1 Corruption Purged . | . . . . . . . . . . . . . . . . . . . Corruption Blocked . | . . . . . . . . . . . . . . . . . . . Effects 84 | . . . . . . . 4 11 31 . . 31 . . . . . 7 Message Errors 18 | . . . . . . . . 3 9 . . 5 . . . . . 1 Matter Fused 21 | . . . . . . . . 3 7 . . 8 . . . . . 3 Heat Flow Errors 9 | . . . . . . . 1 1 1 . . 5 . . . . . 1 Energy Discharges 13 | . . . . . . . 1 1 6 . . 5 . . . . . . Data Loss (minor) 9 | . . . . . . . 1 1 3 . . 4 . . . . . . Data Loss (major) 5 | . . . . . . . 1 . 1 . . 2 . . . . . 1 Misfires 4 | . . . . . . . . 1 2 . . 1 . . . . . . Alerts 2 | . . . . . . . . 1 . . . 1 . . . . . . Weapon Failures 3 | . . . . . . . . . 2 . . . . . . . . 1 Overload Shots . | . . . . . . . . . . . . . . . . . . . Overflow Damage 998 | . . 20 . 45 60 42 . 13 20 81 . 44 . 354 80 150 34 55 Projectiles 35 | . . . . . . . . 13 . . . . . . 17 5 . . Explosions 322 | . . 20 . 45 60 42 . . 20 1 . 43 . . . 5 31 55 Melee 641 | . . . . . . . . . . 80 . 1 . 354 63 140 3 . Knockbacks 18 | . . . . . . . . 1 . 3 . 4 . 1 2 1 6 . Impact 3 | . . . . . . . . . . 3 . . . . . . . . Kinetic 15 | . . . . . . . . 1 . . . 4 . 1 2 1 6 . Secondary . | . . . . . . . . . . . . . . . . . . . Self-Inflicted Damage 685 | . . 23 . . 62 222 . . 179 . . 45 . . . . 154 . Shots 16 | . . 1 . . 2 3 . . 4 . . 2 . . . . 4 . Rammed . | . . . . . . . . . . . . . . . . . . . Targets Rammed . | . . . . . . . . . . . . . . . . . . . Kicked . | . . . . . . . . . . . . . . . . . . . Crushed . | . . . . . . . . . . . . . . . . . . . Highest Temperature 480 | 18 2 . . . 98 158 480 387 277 108 108 325 . 351 . . 144 59 Average Temperature 67 | 5 2 . . . 28 44 71 92 71 30 49 103 . 112 . . 38 16 Received Heat Transfer 3682 | . 57 . . 18 342 171 1030 60 165 126 9 326 . 550 . . 621 207 Effects 6 | . . . . . . . 2 . 3 . . . . 1 . . . . Shutdowns 1 | . . . . . . . 1 . . . . . . . . . . . Interference 4 | . . . . . . . . . 3 . . . . 1 . . . . Matter Decay 1 | . . . . . . . 1 . . . . . . . . . . . Siege Activations 12 | . . . . . . . . . . . . . . 1 . . 7 4 Total Turns 318 | . . . . . . . . . . . . . . 33 . . 207 78 Longest Duration 68 | . . . . . . . . . . . . . . 33 . . 68 34 Martial Activations . | . . . . . . . . . . . . . . . . . . . Shielding Activations . | . . . . . . . . . . . . . . . . . . . Robots Disrupted 1 | . . . . . . . . . . . . . . . . . 1 . Combat Hostiles 1 | . . . . . . . . . . . . . . . . . 1 . Robots Corrupted 10 | . . . . . . . . . . 2 . . . 1 . . 7 . Combat Hostiles 10 | . . . . . . . . . . 2 . . . 1 . . 7 . Parts Fried 26 | . . . . . . . . . . 12 . . . 6 . . 8 . Impact Corruptions 4 | . . . . . . . . . . 4 . . . . . . . . Robots Melted 3 | . . . . . . . . 3 . . . . . . . . . . Combat Hostiles 1 | . . . . . . . . 1 . . . . . . . . . . Parts Melted 31 | . . . . . . 7 4 8 1 . 2 9 . . . . . . Heat Transferred 12301 | 150 . 50 . . 777 2368 1756 2600 825 250 800 1719 . 50 . . 919 37 Parts Sabotaged . | . . . . . . . . . . . . . . . . . . . Parts Stolen . | . . . . . . . . . . . . . . . . . . . Parts Stripped . | . . . . . . . . . . . . . . . . . . . Power Chain Reactions 9 | . . . . . . . . . . 2 . . . 1 . . 6 . Alert | -11 -10 -10 -10 -9 -8 -7 -7 -6 -6 -5 -4 -4 -3 -3 -2 -1 -1 -1 ------- Run | Yrd Mat Min Exi Min Mat Fac Gar Fac Gar Fac Fac Gar Res Gar Res Acc Gar Acc Maximum Alert Level 5 | . . . . . . 1 4 2 5 3 2 4 3 5 3 2 5 4 Low Security (%) 19 | 100 100 100 . 100 100 95 . . . . . . . . . . . . Level 1 5 | . . . . . . 4 19 24 4 . . 4 . . . . . . Level 2 19 | . . . . . . . 39 75 22 . 100 14 . 5 . 100 11 . Level 3 21 | . . . . . . . 17 . 26 100 . 31 100 33 100 . 4 . Level 4 25 | . . . . . . . 23 . 35 . . 49 . 50 . . 34 100 Level 5 8 | . . . . . . . . . 10 . . . . 10 . . 50 . High Security . | . . . . . . . . . . . . . . . . . . . Max Security . | . . . . . . . . . . . . . . . . . . . Peak Influence 2521 | 10 62 104 . 88 169 305 1273 646 1833 1050 544 1513 850 1728 994 638 2521 1589 Initial 1512 | . . . . . . 25 219 646 339 961 512 307 850 601 972 545 490 1512 Average 843 | 1 14 36 . 20 74 46 720 458 1004 929 477 1047 825 1234 951 564 1593 1441 Influence Increases 12053 | 15 169 276 . 148 404 537 1254 385 1614 851 205 1576 2 1407 188 178 2401 443 Destroy 0b10 Robot/C 5830 | . 140 160 . 120 240 320 660 180 840 500 120 585 . 570 90 75 1020 210 Destroy 0b10 Robot/NC 408 | 15 5 5 . 5 40 40 5 55 30 45 15 24 . 12 24 28 20 40 Destroy Leader 718 | . 22 30 . 20 36 74 30 78 50 94 30 50 . 48 18 12 80 46 Allied During Kill 646 | . . 6 . . . . 1 . 187 115 . 126 . 117 35 . 59 . Successful Hack 154 | . . . . . 29 24 . 4 14 32 . 28 . . . . 23 . Disable Machine 354 | . . 30 . . 15 45 30 15 15 15 30 15 . 48 . . 60 36 Anti-Garrison Action 2319 | . . . . . . . 450 . 250 . . 563 . 416 . . 640 . Destroy Structure 1297 | . 2 45 . 3 44 34 78 8 198 20 10 155 2 88 9 63 427 111 Lose Combat Pursuer 327 | . . . . . . . . 45 30 30 . 30 . 108 12 . 72 . Influence Decreases 10480 | 15 169 276 . 148 347 281 334 1133 266 1638 812 502 713 481 1006 475 493 1391 Entered New Map 5514 | . . . . . . 32 94 587 146 872 534 132 663 201 756 365 123 1009 Time Decay 3022 | 15 169 276 . 148 283 219 . 526 . 486 238 . 50 . 160 110 . 342 Lost Part 1074 | . . . . . 64 30 220 20 60 10 40 270 . 40 30 . 250 40 Lost Ally 720 | . . . . . . . 20 . 60 120 . 100 . 240 60 . 120 . Purge Threat 150 | . . . . . . . . . . 150 . . . . . . . . Squads Dispatched 32 | . 1 . . . 5 5 . 8 . 6 1 . . . 2 . . 4 Investigation 4 | . . . . . 1 . . 2 . 1 . . . . . . . . Extermination 9 | . . . . . . 1 . 3 . 3 1 . . . . . . 1 Reinforcement 8 | . 1 . . . 2 . . 3 . 1 . . . . . . . 1 Assault 7 | . . . . . 2 . . . . 1 . . . . 2 . . 2 Garrison 4 | . . . . . . 4 . . . . . . . . . . . . Intercept . | . . . . . . . . . . . . . . . . . . . Searches Triggered . | . . . . . . . . . . . . . . . . . . . Construction Impeded 2 | . . . . . . . . . . 1 . . . . . . . 1 Haulers Reinforced 1 | . . . . . . . . 1 . . . . . . . . . . Active Scanning Responses . | . . . . . . . . . . . . . . . . . . . Cargo Convoy Interrupts . | . . . . . . . . . . . . . . . . . . . Stealth | -11 -10 -10 -10 -9 -8 -7 -7 -6 -6 -5 -4 -4 -3 -3 -2 -1 -1 -1 --------- Run | Yrd Mat Min Exi Min Mat Fac Gar Fac Gar Fac Fac Gar Res Gar Res Acc Gar Acc Distress Signals 8 | . 1 . . . 5 1 . 1 . . . . . . . . . . Communications Jammed . | . . . . . . . . . . . . . . . . . . . Distress Signals . | . . . . . . . . . . . . . . . . . . . Times Spotted 355 | . 12 6 . 6 15 15 36 14 35 20 7 36 . 40 15 6 74 18 Peak Tracking Total 14 | . 3 3 . 4 6 4 6 3 7 6 2 7 . 7 4 5 14 5 Tactical Retreats 14 | . . . . . . . . 1 2 1 . 2 . 3 1 . 4 . Traps | -11 -10 -10 -10 -9 -8 -7 -7 -6 -6 -5 -4 -4 -3 -3 -2 -1 -1 -1 ------- Run | Yrd Mat Min Exi Min Mat Fac Gar Fac Gar Fac Fac Gar Res Gar Res Acc Gar Acc Traps Triggered 28 | . . . . . 1 . . 1 4 5 1 7 . 2 . . 7 . Indirectly 6 | . . . . . . . . . . 3 1 . . 1 . . 1 . Trap Hack Attempts . | . . . . . . . . . . . . . . . . . . . Triggered . | . . . . . . . . . . . . . . . . . . . Disarmed . | . . . . . . . . . . . . . . . . . . . Reprogrammed . | . . . . . . . . . . . . . . . . . . . Reused . | . . . . . . . . . . . . . . . . . . . Traps Extracted . | . . . . . . . . . . . . . . . . . . . Installed . | . . . . . . . . . . . . . . . . . . . Triggered . | . . . . . . . . . . . . . . . . . . . Machines | -11 -10 -10 -10 -9 -8 -7 -7 -6 -6 -5 -4 -4 -3 -3 -2 -1 -1 -1 ---------- Run | Yrd Mat Min Exi Min Mat Fac Gar Fac Gar Fac Fac Gar Res Gar Res Acc Gar Acc Machines Disabled 50 | . . 2 . . 1 3 8 1 5 1 2 5 . 9 . . 10 3 Max in Single Turn 3 | . . 2 . . 1 3 2 1 2 1 2 1 . 2 . . 1 1 Garrison Access 1 | . . . . . 1 . . . . . . . . . . . . . Garrison Relay 20 | . . . . . . . 4 . 2 . . 4 . 5 . . 5 . Phase Generator 2 | . . . . . . . 1 . 1 . . . . . . . . . Machines Repaired . | . . . . . . . . . . . . . . . . . . . Machines Dismantled 3 | . . . . . . . . . . . . . . . . . . 3 Machines Sabotaged . | . . . . . . . . . . . . . . . . . . . Overloaded Fab Kills . | . . . . . . . . . . . . . . . . . . . Hacking | -11 -10 -10 -10 -9 -8 -7 -7 -6 -6 -5 -4 -4 -3 -3 -2 -1 -1 -1 --------- Run | Yrd Mat Min Exi Min Mat Fac Gar Fac Gar Fac Fac Gar Res Gar Res Acc Gar Acc Machines Accessed 26 | . 2 1 1 . 2 2 1 1 1 5 2 2 1 2 . 1 2 . Terminals 13 | . 2 . . . 1 . 1 . 1 1 1 2 . 2 . . 2 . Fabricators 1 | . . . . . . . . . . 1 . . . . . . . . Repair Stations 1 | . . . . . . . . . . 1 . . . . . . . . Recycling Units . | . . . . . . . . . . . . . . . . . . . Scanalyzers 4 | . . . . . 1 1 . . . 2 . . . . . . . . Garrison Access 5 | . . . . . . 1 . 1 . . 1 . 1 . . 1 . . Total Hacks 49 | . 5 1 1 . 5 3 1 3 1 12 2 4 1 6 . 1 3 . Successful 27 | . 3 1 1 . 4 2 1 1 1 6 1 2 1 . . 1 2 . Failed 20 | . 2 . . . 1 . . 2 . 5 1 2 . 6 . . 1 . Catastrophic 4 | . . . . . . . . . . 2 1 . . 1 . . . . Database Lockouts 2 | . . . . . . 1 . . . 1 . . . . . . . . Manual 5 | . 3 . 1 . . . . . . . 1 . . . . . . . Terminals 25 | . 5 . . . 1 . 1 . 1 3 1 4 . 6 . . 3 . Fabricators 1 | . . . . . . . . . . 1 . . . . . . . . Repair Stations 2 | . . . . . . . . . . 2 . . . . . . . . Recycling Units . | . . . . . . . . . . . . . . . . . . . Scanalyzers 12 | . . . . . 4 2 . . . 6 . . . . . . . . Garrison Access 7 | . . . . . . 1 . 3 . . 1 . 1 . . 1 . . Terminal Hacks 11 | . 1 1 1 . 1 . 1 . 1 1 . 2 . . . . 2 . Open Door 1 | . . 1 . . . . . . . . . . . . . . . . Emergency Access Points 4 | . 1 . . . . . 1 . 1 . . 1 . . . . . . Unreport Threat 1 | . . . . . . . . . . 1 . . . . . . . . Zone Layout 1 | . . . . . 1 . . . . . . . . . . . . . Patrol Navigation 2 | . . . . . . . . . . . . 1 . . . . 1 . Security Stations 1 | . . . . . . . . . . . . . . . . . 1 . Proto ID Catalog 1 | . . . 1 . . . . . . . . . . . . . . . Fabricator Hacks 1 | . . . . . . . . . . 1 . . . . . . . . Build 1 | . . . . . . . . . . 1 . . . . . . . . Repair Station Hacks . | . . . . . . . . . . . . . . . . . . . Recycling Unit Hacks . | . . . . . . . . . . . . . . . . . . . Scanalyzer 8 | . . . . . 3 1 . . . 4 . . . . . . . . Insert Component 1 | . . . . . . . . . . 1 . . . . . . . . Analyze 1 | . . . . . . . . . . 1 . . . . . . . . Retrieve Study 6 | . . . . . 3 1 . . . 2 . . . . . . . . Garrison Access Hacks 5 | . . . . . . 1 . 1 . . 1 . 1 . . 1 . . Unlock Access 5 | . . . . . . 1 . 1 . . 1 . 1 . . 1 . . Unauthorized Hacks 2 | . 2 . . . . . . . . . . . . . . . . . Terminals 2 | . 2 . . . . . . . . . . . . . . . . . Botnet 2 | . 2 . . . . . . . . . . . . . . . . . Fabricators . | . . . . . . . . . . . . . . . . . . . Repair Stations . | . . . . . . . . . . . . . . . . . . . Recycling Units . | . . . . . . . . . . . . . . . . . . . Scanalyzers . | . . . . . . . . . . . . . . . . . . . Garrison Access . | . . . . . . . . . . . . . . . . . . . Data Cores Recovered 1 | . . . . . . . . . . . 1 . . . . . . . Used 1 | . . . . . . . . . . . 1 . . . . . . . Hacking Detections 18 | . 2 . . . 1 2 . 1 1 4 2 2 . 2 . . 1 . Full Trace Events 4 | . . . . . . . . 1 . . . 1 . 2 . . . . Feedback Events 1 | . . . . . . . . 1 . . . . . . . . . . Corruption 1 | . . . . . . . . 1 . . . . . . . . . . Feedback Blocked . | . . . . . . . . . . . . . . . . . . . Robot Schematics Acquired . | . . . . . . . . . . . . . . . . . . . Robots Built 2 | . . . . . . . . . . 2 . . . . . . . . Authchips . | . . . . . . . . . . . . . . . . . . . Time 67 | . . . . . . . . . . 67 . . . . . . . . Total Robot Build Rating 8 | . . . . . . . . . . 8 . . . . . . . . Part Schematics Acquired 1 | . . . . . . . . . . 1 . . . . . . . . Parts Built . | . . . . . . . . . . . . . . . . . . . Authchips . | . . . . . . . . . . . . . . . . . . . Time . | . . . . . . . . . . . . . . . . . . . Total Part Build Rating . | . . . . . . . . . . . . . . . . . . . Part Studies Acquired 6 | . . . . . 3 1 . . . 2 . . . . . . . . Parts Repaired . | . . . . . . . . . . . . . . . . . . . Time . | . . . . . . . . . . . . . . . . . . . Parts Recycled . | . . . . . . . . . . . . . . . . . . . Recycled Matter . | . . . . . . . . . . . . . . . . . . . Retrieved Matter . | . . . . . . . . . . . . . . . . . . . Retrieved Components . | . . . . . . . . . . . . . . . . . . . Parts Scanalyzed 1 | . . . . . . . . . . 1 . . . . . . . . Part Schematics Acquired 1 | . . . . . . . . . . 1 . . . . . . . . Parts Damaged . | . . . . . . . . . . . . . . . . . . . Bothacking | -11 -10 -10 -10 -9 -8 -7 -7 -6 -6 -5 -4 -4 -3 -3 -2 -1 -1 -1 ------------ Run | Yrd Mat Min Exi Min Mat Fac Gar Fac Gar Fac Fac Gar Res Gar Res Acc Gar Acc Used RIF Installer 5 | . . . . . . . . . 1 . . 2 . 1 . . 1 . Hotswap 1 | . . . . . . . . . . . . 1 . . . . . . Threat Obfuscator 1 | . . . . . . . . . . . . 1 . . . . . . Zone Cloak 1 | . . . . . . . . . . . . . . . . . 1 . Autooverride 1 | . . . . . . . . . . . . . . 1 . . . . Robots Hacked 19 | . . . . . . . . . . . . 6 . 9 . . 4 . Non-combat . | . . . . . . . . . . . . . . . . . . . Combat 19 | . . . . . . . . . . . . 6 . 9 . . 4 . Autooverrided 1 | . . . . . . . . . . . . . . . . . 1 . Robot Hacks Applied 18 | . . . . . . . . . . . . 6 . 9 . . 3 . scatter_targeting 1 | . . . . . . . . . . . . 1 . . . . . . disable_weapons 1 | . . . . . . . . . . . . 1 . . . . . . overwrite_iff 6 | . . . . . . . . . . . . . . 4 . . 2 . formatsys_high 10 | . . . . . . . . . . . . 4 . 5 . . 1 . Relay Couplers Released 88 | . . . . . 3 . 19 . 7 . . 18 . 20 . . 21 . Machine Destruction 84 | . . . . . 3 . 19 . 7 . . 18 . 20 . . 17 . Programmers 4 | . . . . . . . . . . . . . . . . . 4 . Attached 9 | . . . . . . . . . . . . 2 . 4 . . 3 . Fabnet Peak Effective % . | . . . . . . . . . . . . . . . . . . . Robots Rewired 24 | . . . . . . . . . 12 . . . . 8 . . 4 . Allies Hacked 1 | . . . . . . . . . . 1 . . . . . . . . Hacks Repelled . | . . . . . . . . . . . . . . . . . . . Allies | -11 -10 -10 -10 -9 -8 -7 -7 -6 -6 -5 -4 -4 -3 -3 -2 -1 -1 -1 -------- Run | Yrd Mat Min Exi Min Mat Fac Gar Fac Gar Fac Fac Gar Res Gar Res Acc Gar Acc Total Allies 48 | . . 2 . . . . 1 . 12 2 . 6 . 17 . . 8 . Largest Group 10 | . . 2 2 . . . 1 . 8 10 . 5 . 6 3 . 4 . Highest-Rated Group 320 | . . 45 45 . . . 39 . 256 320 . 240 . 304 162 . 283 . Highest-Rated Ally 219 | . . 31 31 . . . 39 . 43 32 . 51 . 68 64 . 219 . Initial Warlord ECA Mod 6 | . . . . . . . . 6 6 . . . . . . . . . Total Orders . | . . . . . . . . . . . . . . . . . . . Ally Attacks 253 | . . . . . . . 3 . 66 35 . 42 . 62 13 . 32 . Total Damage 8482 | . . . . . . . 67 . 2362 1562 . 1144 . 2155 443 . 749 . Kills 61 | . . . . . . . 1 . 18 15 . 8 . 11 4 . 4 . Allies Corrupted 1 | . . . . . . . . . . 1 . . . . . . . . Allies Melted 1 | . . . . . . . . . 1 . . . . . . . . . Intel | -11 -10 -10 -10 -9 -8 -7 -7 -6 -6 -5 -4 -4 -3 -3 -2 -1 -1 -1 ------- Run | Yrd Mat Min Exi Min Mat Fac Gar Fac Gar Fac Fac Gar Res Gar Res Acc Gar Acc Active Infowar (turns) 6393 | 31 680 823 365 549 58 . 52 . . 1015 518 926 . 1280 96 . . . Optics 1766 | . . . . . . . . . . 1015 518 233 . . . . . . A.S.S. 52 | . . . . . . . 52 . . . . . . . . . . . Seismic 2506 | 31 680 823 365 549 58 . . . . . . . . . . . . . Jamming 2069 | . . . . . . . . . . . . 693 . 1280 96 . . . Robot Analysis Total . | . . . . . . . . . . . . . . . . . . . Derelict Logs Recovered 2 | . . 1 . 1 . . . . . . . . . . . . . . Drone Launches . | . . . . . . . . . . . . . . . . . . . Drone Recoveries . | . . . . . . . . . . . . . . . . . . . Exploration | -11 -10 -10 -10 -9 -8 -7 -7 -6 -6 -5 -4 -4 -3 -3 -2 -1 -1 -1 ------------- Run | Yrd Mat Min Exi Min Mat Fac Gar Fac Gar Fac Fac Gar Res Gar Res Acc Gar Acc Turns Passed 19518 | 114 680 823 365 549 724 881 2042 1469 1625 1263 518 2373 119 2020 333 231 2629 760 Spaces Moved 9183 | 62 328 500 226 327 320 420 977 637 742 748 306 1056 74 919 163 110 1046 222 Core 14 | 14 . . . . . . . . . . . . . . . . . . Treads 5661 | 48 328 500 226 327 320 420 977 179 167 . . 647 74 919 163 110 256 . Legs 1088 | . . . . . . . . . . . . 76 . . . . 790 222 Wheels 2420 | . . . . . . . . 458 575 748 306 333 . . . . . . Hover . | . . . . . . . . . . . . . . . . . . . Flight . | . . . . . . . . . . . . . . . . . . . Fastest Speed 50 | 50 160 160 160 160 160 160 160 125 125 130 116 116 155 155 155 155 150 180 Average Speed 160 | 135 160 160 160 160 166 160 160 161 150 130 131 176 155 155 155 155 180 180 Slowest Speed 330 | 160 160 160 160 160 200 160 230 230 208 130 160 330 155 232 155 155 225 180 Overloaded Moves . | . . . . . . . . . . . . . . . . . . . Propulsion Burnouts . | . . . . . . . . . . . . . . . . . . . Robots Hopped . | . . . . . . . . . . . . . . . . . . . Potential Cave-ins . | . . . . . . . . . . . . . . . . . . . Cave-ins Triggered . | . . . . . . . . . . . . . . . . . . . Exploration Rate (%) 44 | 4 56 95 60 81 39 11 77 22 93 21 11 86 2 86 4 5 85 4 Regions Visited 18 Branch Regions 3 Pre-discovered Areas 1 | . . 1 . . . . . . . . . . . . . . . . Known Exits Taken 5 | . . . . . . 1 . 1 . . 1 . 1 . . 1 . . Unknown Exits Taken 8 | 1 1 1 1 1 1 . . . . 1 . . . . 1 . . . Scrap Searched 1 | . . 1 . . . . . . . . . . . . . . . . Spaces Dug 34 | . . . . . . . . 1 . 1 . . 1 3 . . 28 . Terrain Destroyed 819 | . . 52 . 3 56 34 110 9 210 8 4 28 1 19 3 22 195 65 Melee 6 | . . . . . . . . . . 1 . . 1 1 . . 3 . Projectile 97 | . . . . . 5 . 1 9 5 4 4 6 . 4 3 5 37 14 AOE 711 | . . 52 . 3 51 34 109 . 205 3 . 22 . 14 . 17 151 50 Terrain Rammed 1 | . . . . . . . . . . . . 1 . . . . . . Walls Destroyed . | . . . . . . . . . . . . . . . . . . . Machines Disabled . | . . . . . . . . . . . . . . . . . . . Actions | -11 -10 -10 -10 -9 -8 -7 -7 -6 -6 -5 -4 -4 -3 -3 -2 -1 -1 -1 --------- Run | Yrd Mat Min Exi Min Mat Fac Gar Fac Gar Fac Fac Gar Res Gar Res Acc Gar Acc Total 12748 | 82 435 517 232 340 466 563 1310 1004 1117 996 385 1425 75 1382 204 151 1573 491 Wait 1561 | . 65 5 . . 58 59 86 283 112 186 36 64 . 214 13 24 167 189 Move 9165 | 61 327 499 225 326 319 420 976 637 740 747 305 1054 74 918 162 110 1044 221 Hop . | . . . . . . . . . . . . . . . . . . . Pick Up 278 | 9 14 2 2 2 19 19 55 11 8 9 11 55 . 13 3 1 44 1 Fast Attach 56 | 1 . . . . 5 5 1 7 2 2 . 13 . 6 3 2 7 2 Attach 143 | 6 . . . . 15 4 28 3 4 1 9 28 . 9 2 . 30 4 Detach 17 | . . . . . 5 . . 1 . . 1 4 . 2 . . 4 . Swap 112 | . 3 1 . 2 4 9 13 8 13 10 1 13 . 12 . 3 16 4 Drop 182 | . 2 3 5 2 10 16 33 10 7 10 1 46 . 11 . 2 23 1 Fire 727 | 5 24 7 . 8 31 31 118 44 94 20 21 77 . 41 7 6 153 40 Melee 124 | . . . . . . . . . . 11 . 37 1 49 14 3 9 . Ram 1 | . . . . . . . . . . . . 1 . . . . . . Kick . | . . . . . . . . . . . . . . . . . . . Crush . | . . . . . . . . . . . . . . . . . . . Escape Stasis 58 | . . . . . . . . . 16 . . 32 . . . . 10 . Rewire 295 | . . . . . . . . . 121 . . 1 . 107 . . 66 . Trap . | . . . . . . . . . . . . . . . . . . . Miscellaneous 29 | . . . . . . . . . . . . . . . . . . 29 Route ------- -11/Scrapyard -10/Materials (discovered 2 exits: [*Mat] / *Min) -10/Mines (discovered 4 exits: [*Mat x2] / *Exi / [*Sub]) -10/Exiles (discovered 2 exits: [*Min x2]) -9/Mines (discovered 2 exits: *Mat x2) -8/Materials -7/Factory (discovered 2 exits: *Fac / Gar) -7/Garrison (discovered 2 exits: *Fac x2) -6/Factory -6/Garrison (discovered 4 exits: *Fac x3 / [*Fac]) -5/Factory -4/Factory (discovered 2 exits: *Res / Gar) -4/Garrison (discovered 3 exits: *Res x3) -3/Research -3/Garrison (discovered 3 exits: [*Res x3]) -2/Research -1/Access -1/Garrison (discovered 3 exits: [*Acc x3]) -1/Access To Epsilon Eridani History --------- Turn | Location | Event 7 | -11/Scrapyard | Discovered new exit (range 16) 115 | -11/Scrapyard | Entered Materials 313 | -10/Materials | Build established: Mutant 371 | -10/Materials | Discovered new exit (range 3) 586 | -10/Materials | Discovered new exit (range 7) 795 | -10/Materials | Entered Mines 830 | -10/Mines | Discovered new exit (range 8) 864 | -10/Mines | Discovered new exit (range 7) 984 | -10/Mines | Discovered new exit (range 11) 1058 | -10/Mines | Found a hidden stash of uninstalled traps 1099 | -10/Mines | Learned location of Storage (-9) 1195 | -10/Mines | Found the Drone Emporium 1204 | -10/Mines | Found Prototype Device 1606 | -10/Mines | Deemed a non-threat by the Exiles lab entrance 1607 | -10/Mines | Discovered new exit (range 5) 1618 | -10/Mines | Entered Exiles 1618 | -10/Exiles | Accompanied by 2 allies 1639 | -10/Exiles | Discovered new exit (range 15) 1648 | -10/Exiles | Led the pair of lost Derelicts to a safe place 1658 | -10/Exiles | Met 8R-AWN 1686 | -10/Exiles | Met EX-HEX 1732 | -10/Exiles | Met EX-BIN 1751 | -10/Exiles | Aligned with FarCom system 1753 | -10/Exiles | Given EX-Vault access code 1791 | -10/Exiles | Opened EX-Vault 1805 | -10/Exiles | Found XL Autogun Array 1836 | -10/Exiles | Warned to stay clear of 0b10 Research branches 1884 | -10/Exiles | Met EX-DEC 1965 | -10/Exiles | Discovered new exit (range 14) 1983 | -10/Exiles | Left Exiles lab with XL Autogun Array 1983 | -10/Exiles | Entered Mines 2031 | -9/Mines | Discovered new exit (range 4) 2097 | -9/Mines | Learned Materials terminal intel 2312 | -9/Mines | Received a Rocket Launcher from a helpful Derelict 2454 | -9/Mines | Discovered new exit (range 9) 2532 | -9/Mines | Entered Materials 2532 | -8/Materials | Evolved 4 slots: Propulsion x2, Weapon x2 2533 | -8/Materials | Loaded intel: 12 terminal locations 2670 | -8/Materials | Lost 4 parts (1p3w) 3018 | -8/Materials | Discovered new exit (range 14) 3175 | -8/Materials | Build established: Scavenger-Skirmisher 3256 | -8/Materials | Entered Factory 3256 | -7/Factory | Evolved 2 slots: Propulsion x1, Utility x1 3280 | -7/Factory | Central database locked down 3628 | -7/Factory | Discovered new exit (range 11) 3935 | -7/Factory | Garrison activated, responded to threat 3961 | -7/Factory | Garrison activated, responded to threat 4104 | -7/Factory | Garrison activated, responded to threat 4137 | -7/Factory | Identified exit to Garrison 4137 | -7/Factory | Entered Garrison 4142 | -7/Garrison | Lost 3 parts (2n1w) 4165 | -7/Garrison | Triggered checkpoint 4237 | -7/Garrison | Triggered checkpoint 4378 | -7/Garrison | Garrison Relay disabled 4426 | -7/Garrison | Spotted B-75 Beast 4426 | -7/Garrison | Spotted B-75 Beast 4511 | -7/Garrison | Destroyed B-75 Beast 4559 | -7/Garrison | Destroyed B-75 Beast 4583 | -7/Garrison | Lost 9 parts (2p4n1u2w) 4650 | -7/Garrison | Heavy support dispatched to Factory 4727 | -7/Garrison | Triggered checkpoint 4872 | -7/Garrison | Phase Generator disabled 5081 | -7/Garrison | Discovered new exit (range 3) 5219 | -7/Garrison | Triggered checkpoint 5243 | -7/Garrison | Rescued a captive Derelict 5244 | -7/Garrison | Rescued a captive Derelict 5313 | -7/Garrison | Garrison Relay disabled 5401 | -7/Garrison | Triggered checkpoint 5459 | -7/Garrison | Triggered checkpoint 5530 | -7/Garrison | Discovered new exit (range 10) 5669 | -7/Garrison | Garrison Relay disabled 5697 | -7/Garrison | Garrison Relay disabled 5938 | -7/Garrison | Found Prototype Device 5939 | -7/Garrison | Identified Active Sensor Suite 6122 | -7/Garrison | Spotted B-75 Beast 6122 | -7/Garrison | Spotted B-75 Beast 6179 | -7/Garrison | Entered Factory 6179 | -6/Factory | Evolved 2 slots: Propulsion x1, Utility x1 6208 | -6/Factory | Lost 3 parts (2n1w) 7648 | -6/Factory | Identified exit to Garrison 7648 | -6/Factory | Entered Garrison 7722 | -6/Garrison | Triggered checkpoint 7739 | -6/Garrison | Discovered new exit (range 5) 7816 | -6/Garrison | Triggered checkpoint 7903 | -6/Garrison | Triggered checkpoint 8153 | -6/Garrison | Garrison Relay disabled 8181 | -6/Garrison | Discovered new exit (range 15) 8302 | -6/Garrison | Triggered checkpoint 8354 | -6/Garrison | Lost 3 parts (2n1w) 8509 | -6/Garrison | Garrison Relay disabled 8555 | -6/Garrison | Destroyed 8 combat bots 8745 | -6/Garrison | Phase Generator disabled 8776 | -6/Garrison | Installed Relay Interface Framework 8819 | -6/Garrison | Discovered new exit (range 3) 8902 | -6/Garrison | Triggered checkpoint 8954 | -6/Garrison | Build established: Commander-Skirmisher 8962 | -6/Garrison | Triggered checkpoint 9121 | -6/Garrison | Triggered checkpoint 9213 | -6/Garrison | Discovered new exit (range 10) 9273 | -6/Garrison | Entered Factory 9273 | -5/Factory | Accompanied by 8 allies 9273 | -5/Factory | Evolved 2 slots: Utility x2 9406 | -5/Factory | Fabricated Y-54 Guardian (x2) 9573 | -5/Factory | First assault squad dispatched 9699 | -5/Factory | Lost 3 allies 9732 | -5/Factory | P-70 Sage assimilated allied Guardian 6a 9927 | -5/Factory | Build established: Scavenger-Skirmisher 10460 | -5/Factory | Central database locked down 10497 | -5/Factory | Discovered new exit (range 10) 10536 | -5/Factory | Entered another Factory area 10536 | -4/Factory | Evolved 2 slots: Utility x2 10643 | -4/Factory | Lost 3 parts (2n1u) 10902 | -4/Factory | Discovered new exit (range 19) 10934 | -4/Factory | Build established: Scavenger-Gunner 11053 | -4/Factory | Identified exit to Garrison 11054 | -4/Factory | Entered Garrison 11092 | -4/Garrison | Triggered checkpoint 11146 | -4/Garrison | Lost 3 parts (1u2w) 11158 | -4/Garrison | Garrison Relay disabled 11238 | -4/Garrison | Spotted B-86 Titan 11244 | -4/Garrison | Triggered checkpoint 11301 | -4/Garrison | Destroyed 8 combat bots 11310 | -4/Garrison | Destroyed B-86 Titan 11339 | -4/Garrison | Lost 12 parts (1p3n2u6w) 11354 | -4/Garrison | Triggered checkpoint 11416 | -4/Garrison | Lost 4 parts (1n3w) 11590 | -4/Garrison | Triggered checkpoint 11647 | -4/Garrison | Discovered new exit (range 15) 11686 | -4/Garrison | Expanded RIF knowledge: Hotswap 11699 | -4/Garrison | Rescued a captive Derelict 11711 | -4/Garrison | Rescued a captive Derelict 11782 | -4/Garrison | Lost 3 parts (1p1n1w) 12021 | -4/Garrison | Garrison Relay disabled 12239 | -4/Garrison | Garrison Relay disabled 12245 | -4/Garrison | Triggered checkpoint 12336 | -4/Garrison | Discovered new exit (range 3) 12376 | -4/Garrison | Expanded RIF knowledge: Threat Obfuscation 12902 | -4/Garrison | Build established: Scavenger-Tank 13085 | -4/Garrison | Discovered new exit (range 10) 13134 | -4/Garrison | Spotted B-86 Titan 13180 | -4/Garrison | Lost 3 allies 13227 | -4/Garrison | Destroyed B-86 Titan 13246 | -4/Garrison | Lost 5 parts (4n1u) 13373 | -4/Garrison | Garrison Relay disabled 13427 | -4/Garrison | Entered Research 13427 | -3/Research | Evolved 2 slots: Power x1, Utility x1 13520 | -3/Research | Build established: Scavenger-Mutant 13546 | -3/Research | Identified exit to Garrison 13546 | -3/Research | Entered Garrison 13642 | -3/Garrison | Triggered checkpoint 13665 | -3/Garrison | Garrison Relay disabled 13702 | -3/Garrison | Triggered checkpoint 13702 | -3/Garrison | Triggered checkpoint 13721 | -3/Garrison | Spotted B-86 Titan 13750 | -3/Garrison | Destroyed B-86 Titan 13768 | -3/Garrison | Lost 3 allies 13939 | -3/Garrison | Found Adv. Force Booster 14005 | -3/Garrison | Found Adv. Force Booster 14133 | -3/Garrison | Lost 3 allies 14228 | -3/Garrison | Triggered checkpoint 14228 | -3/Garrison | Build established: Gladiator 14241 | -3/Garrison | Discovered new exit (range 8) 14277 | -3/Garrison | Garrison Relay disabled 14330 | -3/Garrison | Triggered checkpoint 14442 | -3/Garrison | Triggered checkpoint 14464 | -3/Garrison | Garrison Relay disabled 14530 | -3/Garrison | Triggered checkpoint 14546 | -3/Garrison | Triggered checkpoint 14589 | -3/Garrison | Discovered new exit (range 13) 14641 | -3/Garrison | Destroyed 8 combat bots 14664 | -3/Garrison | Expanded RIF knowledge: Autooverride 14912 | -3/Garrison | Build established: Scavenger-Gladiator 15088 | -3/Garrison | Triggered checkpoint 15103 | -3/Garrison | Garrison Relay disabled 15328 | -3/Garrison | Lost 3 allies 15332 | -3/Garrison | Triggered checkpoint 15350 | -3/Garrison | Garrison Relay disabled 15499 | -3/Garrison | Discovered new exit (range 10) 15566 | -3/Garrison | Entered Research 15566 | -2/Research | Accompanied by 3 allies 15566 | -2/Research | Evolved 2 slots: Utility x2 15580 | -2/Research | Discovered new exit (range 7) 15693 | -2/Research | Lost 3 parts (1n2u) 15755 | -2/Research | Lost 3 allies 15816 | -2/Research | First assault squad dispatched 15899 | -2/Research | Entered Access 15899 | -1/Access | Evolved 2 slots: Utility x2 16130 | -1/Access | Identified exit to Garrison 16130 | -1/Access | Entered Garrison 16144 | -1/Garrison | Heavy support dispatched to Access 16186 | -1/Garrison | Triggered checkpoint 16194 | -1/Garrison | Garrison Relay disabled 16334 | -1/Garrison | Build established: Scavenger-Gunner 16350 | -1/Garrison | Learned Access security intel 16458 | -1/Garrison | Destroyed 9 combat bots 16511 | -1/Garrison | Spotted B-99 Colossus 16514 | -1/Garrison | Triggered checkpoint 16516 | -1/Garrison | Triggered checkpoint 16520 | -1/Garrison | Triggered checkpoint 16573 | -1/Garrison | Lost 3 parts (1u2w) 16601 | -1/Garrison | Destroyed B-99 Colossus 16627 | -1/Garrison | Heavy support dispatched to Access 16629 | -1/Garrison | Lost 11 parts (1p2n6u2w) 16630 | -1/Garrison | Destroyed 18 combat bots 16756 | -1/Garrison | Lost 4 parts (1p2n1u) 17280 | -1/Garrison | H-XX Assembler disabled 17307 | -1/Garrison | Discovered new exit (range 10) 17558 | -1/Garrison | Triggered checkpoint 17596 | -1/Garrison | Expanded RIF knowledge: Zone Cloak 17634 | -1/Garrison | Garrison Relay disabled 17819 | -1/Garrison | Triggered checkpoint 17854 | -1/Garrison | Discovered new exit (range 15) 17952 | -1/Garrison | Garrison Relay disabled 18117 | -1/Garrison | Triggered checkpoint 18151 | -1/Garrison | Garrison Relay disabled 18380 | -1/Garrison | Discovered new exit (range 8) 18505 | -1/Garrison | Garrison Relay disabled 18759 | -1/Garrison | Entered Access 19145 | -1/Access | Discovered new exit (range 3) 19259 | -1/Access | First assault squad dispatched 19519 | *** | Escaped! Last Messages --------------- 19476_ I-47 Archangel destroyed. 19476_ Destroyed Adv. Heat Sink. 19476_ Destroyed Phase Gun. 19476_ G-73 Enforcer destroyed. 19478_ Destroyed Myomer Leg. 19478_ Destroyed Hvy. Laser. 19480_ Slug penetrates Sealed Barrier. 19480_ Slug penetrates G-73 Enforcer. 19480_ G-73 Enforcer suffers critical hit (Destroy). 19480_ Destroyed Lgt. Quantum Reactor. 19482_ The unstable cave ceiling collapses. 19482_ Slug penetrates Sealed Barrier. 19485_ The unstable cave ceiling collapses. 19493_ Ended siege mode. 19494_ Acquired 76 matter. 19495_ The unstable cave ceiling collapses. 19509_ ALERT: Unidentified disturbance in Zone 1K, assault force dispatched. [Achievement: One Last FU] Map ----- +----------------------------------------------------+ | ????????????????????????????????????????????????? | | ????????????????????????????????????????????????? | | ????????????????????????????????????????????????? | | ????????????????????????????????????????????????? | | ????????????????????????????????????????????????? | | ????????????????????????????????????????????????? | | ????????????????????????????????????????????????? | | ????????????????????????????????????????????????? | | ????????????????????????????????????????????????? | | ????????????????????????????????????????????????? | | ??????????????????????????????????#?????????????? | | ?????????????????????????????????? ???????????? | | ?????????????????????????????????? # ????????? | | ???????????????????????????????? # #???????? | | ???????????????????????????????? # #???????? | | ???????????????????????????????? #?#?????? | | ???????????????????????????????? H # #?????? | | ???????????????????????????????? ###????? | | ??????????????????????????????#? # # ?????? | | ?????????????????????????????? # # #####??? | | ???????????????????###########" ## ## ???? | | ??????????????????"" " #????? | | ??????????????BB??" =[ # ##???? | | ??????????????BB??"" """"""== = #???? | | ???????????????????"" " ![! [ #????? | | ????????????????????" " !@*=| " ! #?????? | | ????????????????????" " "!!! *" ##?????? | | ????????????????????" " =*!" %%=! #???? | | ??????????????BB????" """"""! " != ! !#### #?? | | ??????????????BB????" """" """%!#???????? | | ????????????????????" """"T"""*=#???????? | | ????????????????????##########"####### #???????? | | ?????????????????????????????????????# #???????? | | ???????????????????Y?????????????????# #???????? | | ?????????????????????????????????????# ######### | | ?????????????????????????????????????# ## # | | ?????????????????????????????????????# ## # | | ?????????????????????????????######### ## # | | ?????????????????????????????+ ##= # | | ?????????????????????????????# ## # | | ?????????????????????????????# # # | | ????????????????????????C????gg # # | | ?????????????????????????????#g " # | | ?????????????????????????????# #%! # | | ?????????????????????????????#############* # | | ?????????????????????????????????????????# # | | ?????????????????????????????????????????# # | | ?????????????????????????????????????????#=% # | | ?????????????????????????????????????????# # | | ?????????????????????????????????????????##+##### | +----------------------------------------------------+ Best States ------------- Heat Dissipation 114 Energy Generation 45 Energy Capacity 600 Matter Stores 300 Matter Capacity 300 Sight Range 22 Robot Scan Range 20 Terrain Scan Density 10 Jamming Range 16 Armor Coverage 1650 Resistance: TH 20 Resistance: EM 25 Weapon Cycling 25 Phase Shifting 15 Evasion (%) 55 Targeting Accuracy 24 Launcher Accuracy 40 Target Analysis 12 Core Analysis 9 Recoil Reduction 6 Particle Charging 25 Kinecelleration 40 Force Boost 40 Offensive Hacking 10 Defensive Hacking 10 Relay Coupler Types 3 Relay Coupler Value 50 Item Schematics ----------------- Arm. Huge Wheel | -5/Factory | Scanalyzed Robot Schematics ------------------ None Fabricated ------------ Y-54 Guardian | x2 | -5/Factory | Preloaded Repaired ---------- Nothing Studied --------- Particle Gun | -8/Materials | Hacked Lgt. Treads | -8/Materials | Hacked Nuclear Core | -8/Materials | Hacked Deuterium Engine | -7/Factory | Hacked KE Penetrator | -5/Factory | Hacked Gauss Rifle | -5/Factory | Hacked Alien Tech Used ----------------- None Achievements -------------- One Last FU Some Acronyms Are Better Than Others Challenges ------------ None Game ------ Seed LobotomyVampiricMembrane Manual? 0 Play Time 02:28:44 Cumulative 147.0 hours Start 2026.03.12 @ 22:34:20 End 2026.03.14 @ 16:20:25 Sessions 5 Manual Loads 0 Difficulty Rogue Special Mode None Game No. 167 Rogue 167 Adventurer 0 Explorer 0 Win Type 0 Total 3 Types 3/0/0/0/0/0/0/0/0/0 Lore% 76 Gallery% 63 Achievement% 49 Wizard Run 0 Options --------- Layout 1 ASCII 0 Keyboard 0 Movement Arrows Keybinds 0 Fullscreen 1 Font 32/SmallcapsGlow Map View 50x35 Zoom Use 0% Tactical HUD 1 Map Filters NONE Filters NONE Steam 1 RUN: ce948929-4a4e-4451-825b-55b3f74467ed